bitfinex/quotes_ETHUSD_20230113
["timestamp","ask_amount","ask_price","bid_price","bid_amount"]
[1673651538491,14.20553617,1453.8,1453.7,7.06e-06]
[1673651538660,10.57078395,1453.8,1453.7,7.06e-06]
[1673651539075,3.69226395,1453.8,1453.7,7.06e-06]
[1673651539326,10.50478395,1453.8,1453.7,7.06e-06]
[1673651539500,10.57078395,1453.8,1453.7,7.06e-06]
[1673651539710,17.44930395,1453.8,1453.7,7.06e-06]
[1673651539916,5.8879691,1453.8,1453.7,7.06e-06]
[1673651540158,14.01547386,1453.8,1453.7,7.06e-06]
[1673651540354,20.89399386,1453.8,1453.7,7.06e-06]
[1673651541171,24.32782395,1453.8,1453.7,7.06e-06]
[1673651541387,31.20634395,1453.8,1453.7,7.06e-06]
[1673651542708,37.51453661,1453.8,1453.7,7.06e-06]
[1673651542854,41.46638077,1453.8,1453.7,7.06e-06]
[1673651543067,35.15818811,1453.8,1453.7,7.06e-06]
[1673651545096,41.46638077,1453.8,1453.7,7.06e-06]
[1673651545286,44.46638077,1453.8,1453.7,7.06e-06]
[1673651548684,52.37894478,1453.8,1453.7,7.06e-06]
[1673651548899,53.39663862,1453.8,1453.2,0.12123548]
[1673651549068,3.43383009,1453.6,1453.2,0.12123548]
[1673651549277,30.95395009,1453.5,1453.2,0.12123548]
[1673651549489,3.43383009,1453.4,1453.2,0.12123548]
[1673651549727,32.95739009,1453.3,1453.2,0.12123548]
[1673651549938,36.3191291,1453.3,1453.2,0.12123548]
[1673651550264,36.3191291,1453.3,1453.2,5.48e-06]
[1673651550471,34.3191291,1453.3,1453.2,5.48e-06]
[1673651551599,27.62726513,1453.3,1453.2,5.48e-06]
[1673651555296,20.89769603,1453.3,1453.2,5.48e-06]
[1673651555504,0.25502603,1453.3,1453.2,5.48e-06]
[1673651555748,0.18902603,1453.3,1453.2,0.34217477]
[1673651555889,0.18902603,1453.3,1453.2,3.34217477]
[1673651556099,0.18902603,1453.3,1453.2,5.17419539]
[1673651556474,18.33261009,1453.3,1453.2,0.06600548]
[1673651556800,18.39861009,1453.3,1453.2,5.48e-06]
[1673651557164,21.39861009,1453.3,1453.2,5.48e-06]
[1673651557396,37.66642878,1453.3,1453.2,5.48e-06]
[1673651557732,44.50310069,1453.3,1453.2,5.48e-06]
[1673651559058,51.38399069,1453.3,1453.2,5.48e-06]
[1673651559289,58.58799069,1453.3,1453.2,5.48e-06]
[1673651559925,51.38399069,1453.3,1453.2,5.48e-06]
[1673651560947,60.94818624,1453.3,1453.0,0.1258229]
[1673651561172,30.96115009,1453.1,1453.0,0.1258229]
[1673651561509,37.33534275,1453.1,1453.0,0.1258229]
[1673651561847,40.33534275,1453.1,1453.0,0.1258229]
[1673651562461,9.329,1452.9,1452.5,0.016]
[1673651562614,9.329,1452.9,1452.4,0.1258229]
[1673651562615,27.53492,1452.7,1452.4,0.1258229]
[1673651562831,20.65404,1452.5,1452.4,0.1258229]
[1673651563064,24.15387009,1452.5,1452.4,0.1258229]
[1673651563498,29.2979141,1452.5,1452.4,0.1258229]
[1673651564532,29.52559255,1452.5,1452.4,0.1258229]
[1673651564877,24.38154854,1452.5,1452.4,0.1258229]
[1673651568008,17.49686854,1452.5,1452.4,0.1258229]
[1673651568220,24.38154854,1452.5,1452.4,0.1258229]
[1673651568608,17.49686854,1452.5,1452.4,0.1258229]
[1673651569063,24.38154854,1452.5,1452.4,0.1258229]
[1673651570720,14.06303845,1452.5,1452.4,0.1258229]
[1673651571884,20.94771845,1452.5,1452.4,0.1258229]
[1673651572118,28.51652038,1452.5,1452.4,0.1258229]
[1673651572826,21.63184038,1452.5,1452.4,0.1258229]
[1673651573074,28.51652038,1452.5,1452.4,0.1258229]
[1673651574650,17.49686854,1452.5,1452.4,0.1258229]
[1673651574821,24.38154854,1452.5,1452.4,0.1258229]
[1673651575230,20.94771845,1452.5,1452.4,0.1258229]
[1673651575441,24.38154854,1452.5,1452.4,0.1258229]
[1673651575766,2.0,1452.4,1452.2,0.1258229]
[1673651575975,24.09069009,1452.3,1452.2,0.1258229]
[1673651576176,10.38545009,1452.3,1452.2,0.1258229]
[1673651576388,3.49983009,1452.3,1452.2,0.1258229]
[1673651576631,3.43383009,1452.3,1452.2,0.1258229]
[1673651576828,10.31945009,1452.3,1452.2,0.1258229]
[1673651577171,10.38545009,1452.3,1452.2,0.1258229]
[1673651577482,10.61163922,1452.3,1452.2,0.1258229]
[1673651577854,3.72601922,1452.3,1452.2,0.1258229]
[1673651578113,0.22618913,1452.3,1452.2,0.1258229]
[1673651579266,7.11180913,1452.3,1452.2,0.1258229]
[1673651579434,16.15828904,1452.3,1452.2,0.1258229]
[1673651579641,23.04390904,1452.3,1452.2,0.1258229]
[1673651579851,23.04390904,1452.3,1452.2,0.0758229]
[1673651580286,26.47773913,1452.3,1452.2,0.0758229]
[1673651580770,19.59211913,1452.3,1452.2,0.0758229]
[1673651580954,10.61163922,1452.3,1452.2,0.0758229]
[1673651581197,17.49725922,1452.3,1452.2,0.0758229]
[1673651581530,24.38287922,1452.3,1452.2,2.9e-06]
[1673651581902,33.70437922,1452.3,1452.2,2.9e-06]
[1673651582111,39.78338014,1452.3,1452.2,2.9e-06]
[1673651583682,46.98738014,1452.3,1452.2,2.9e-06]
[1673651583893,54.00413681,1452.3,1452.2,2.9e-06]
[1673651584564,0.002,1452.1,1451.9,0.906064]
[1673651584900,30.98203009,1452.0,1451.9,0.906064]
[1673651585084,30.98203009,1452.0,1451.6,0.1258229]
[1673651585085,37.35622275,1452.0,1451.6,0.1258229]
[1673651585304,27.552,1451.8,1451.6,0.1258229]
[1673651585474,24.09924009,1451.7,1451.6,0.1258229]
[1673651585683,24.16524009,1451.7,1451.6,0.1258229]
[1673651585940,27.2705641,1451.7,1451.6,0.1258229]
[1673651586159,27.2705641,1451.7,1451.3,1.8606482]
[1673651586315,27.2705641,1451.7,1451.2,3.0]
[1673651586316,20.66853,1451.5,1451.2,3.018]
[1673651586526,20.73453,1451.5,1451.2,3.0]
[1673651587104,24.16836009,1451.5,1451.2,3.0]
[1673651587269,24.16836009,1451.5,1451.2,2.95]
[1673651587837,26.5851961,1451.5,1451.1,0.1528253]
[1673651588153,3.43383009,1451.4,1451.1,0.1348253]
[1673651588411,13.78168,1451.2,1451.1,0.1348253]
[1673651588563,20.73852,1451.2,1451.1,0.1348253]
[1673651588773,17.0926906,1451.2,1451.1,0.1348253]
[1673651589464,20.52652069,1451.2,1451.1,0.1348253]
[1673651589620,13.63568069,1451.2,1451.1,0.1348253]
[1673651589827,13.63294738,1451.2,1451.1,0.1348253]
[1673651590246,0.28399054,1451.2,1451.1,0.1348253]
[1673651590457,0.21799054,1451.2,1451.1,0.1348253]
[1673651590723,8.24583054,1451.2,1451.1,0.1348253]
[1673651590925,15.20267054,1451.2,1451.1,0.1348253]
[1673651591511,14.06567054,1451.2,1451.1,0.1348253]
[1673651591717,0.28399054,1451.2,1451.1,0.1348253]
[1673651591927,0.28399054,1451.2,1451.1,20.8087853]
[1673651591928,0.21799054,1451.2,1451.1,20.8087853]
[1673651592266,9.7955,1451.7,1451.2,0.18427385]
[1673651592267,23.63876,1451.7,1451.2,0.18427385]
[1673651592470,17.21239009,1451.6,1451.2,0.18427385]
[1673651592683,17.27839009,1451.6,1451.2,0.18427385]
[1673651592894,24.16773009,1451.6,1451.2,0.18427385]
[1673651593085,17.27839009,1451.6,1451.2,0.18427385]
[1673651593318,17.27839009,1451.6,1451.2,1.61517362]
[1673651593760,17.27839009,1451.6,1451.2,3.61517362]
[1673651593979,24.16773009,1451.6,1451.2,1.61517362]
[1673651594296,0.22022775,1451.5,1451.2,1.61517362]
[1673651594449,7.10991775,1451.5,1451.2,1.61517362]
[1673651594667,7.17591775,1451.5,1451.3,2.16151736]
[1673651594868,7.17591775,1451.5,1451.3,0.16151736]
[1673651594869,14.06560775,1451.5,1451.3,0.16151736]
[1673651595079,20.95529775,1451.5,1451.2,0.18427385]
[1673651595291,24.38912784,1451.5,1451.2,0.18427385]
[1673651595930,20.95529775,1451.5,1451.2,0.18427385]
[1673651596138,24.38912784,1451.5,1451.2,0.18427385]
[1673651597074,3.43383009,1451.4,1451.2,0.18427385]
[1673651597289,24.4483231,1451.3,1451.2,0.18427385]
[1673651597544,24.5143231,1451.3,1451.2,0.18427385]
[1673651598365,24.69689272,1451.3,1451.2,0.18427385]
[1673651598974,24.69689272,1451.3,1451.2,0.13427385]
[1673651600072,6.88917,1451.6,1451.3,2.48586578]
[1673651600230,6.88917,1451.6,1451.3,4.48586578]
[1673651600231,0.066,1451.6,1451.3,4.48586578]
[1673651600442,6.95462,1451.7,1451.3,2.48586578]
[1673651600662,190.33603507,1451.1,1451.0,14.31030257]
[1673651600875,182.19944965,1451.1,1451.0,27.40672382]
[1673651601204,182.19944965,1451.1,1451.0,34.29851382]
[1673651601414,182.19944965,1451.1,1451.0,35.18929048]
[1673651601626,182.19944965,1451.1,1451.0,27.26970457]
[1673651601835,182.19944965,1451.1,1451.0,19.48713791]
[1673651602169,182.19944965,1451.1,1451.0,20.37791457]
[1673651602337,182.35009922,1451.1,1451.0,19.48713791]
[1673651602754,182.35009922,1451.1,1451.0,12.59540791]
[1673651603220,182.35009922,1451.1,1451.0,22.94515782]
[1673651603533,182.35009922,1451.1,1451.0,29.83694782]
[1673651603958,182.35009922,1451.1,1451.0,2.566]
[1673651604166,203.02405922,1451.1,1451.0,2.5]
[1673651605378,185.78392931,1451.1,1451.0,2.5]
[1673651606155,192.67524931,1451.1,1451.0,2.5]
[1673651606370,199.56656931,1451.1,1451.0,2.5]
[1673651606530,206.40324122,1451.1,1451.0,2.5]
[1673651608055,206.40324122,1451.1,1450.8,2.566]
[1673651608267,212.74353654,1451.1,1450.8,2.45871465]
[1673651608421,3.43383009,1451.0,1450.8,2.45871465]
[1673651608635,10.32625009,1450.9,1450.6,1.366]
[1673651608842,10.32625009,1450.9,1450.6,4.3]
[1673651608843,10.39225009,1450.9,1450.6,4.3]
[1673651609084,10.39225009,1450.9,1450.8,2.45871465]
[1673651609278,3.49983009,1450.9,1450.8,2.45871465]
[1673651609489,10.32610009,1450.9,1450.8,2.45871465]
[1673651609699,6.95827,1450.9,1450.8,2.45871465]
[1673651609925,13.85054,1450.9,1450.8,2.45871465]
[1673651610138,24.17664009,1450.9,1450.8,2.45871465]
[1673651610367,24.32638489,1450.9,1450.8,2.45871465]
[1673651611277,27.44820238,1450.9,1450.8,2.45871465]
[1673651612324,14.0002848,1450.9,1450.8,2.45871465]
[1673651612690,24.32638489,1450.9,1450.8,2.45871465]
[1673651613071,14.0002848,1450.9,1450.8,2.45871465]
[1673651613510,20.8925548,1450.9,1450.8,2.45871465]
[1673651614891,24.32638489,1450.9,1450.8,2.45871465]
[1673651615678,17.43411489,1450.9,1450.8,2.45871465]
[1673651615890,0.2157448,1450.9,1450.8,2.45871465]
[1673651616214,0.1497448,1450.9,1450.8,2.70458612]
[1673651616417,7.0420148,1450.9,1450.8,2.45871465]
[1673651616632,7.1080148,1450.9,1450.8,2.45871465]
[1673651617379,17.43411489,1450.9,1450.8,2.45871465]
[1673651617588,24.32638489,1450.9,1450.8,2.45871465]
[1673651618941,24.32638489,1450.9,1450.6,1.366]
[1673651619201,25.80753456,1450.9,1450.6,1.3]
[1673651619373,3.43383009,1450.8,1450.6,1.3]
[1673651619583,31.00671009,1450.7,1450.6,1.3]
[1673651619935,31.07271009,1450.7,1450.6,1.3]
[1673651620169,24.17949009,1450.7,1450.6,1.3]
[1673651620305,26.7456913,1450.7,1450.6,1.3]
[1673651620939,26.7456913,1450.7,1450.6,3.75871465]
[1673651621268,19.8524713,1450.7,1450.6,3.75871465]
[1673651621496,26.7456913,1450.7,1450.6,3.75871465]
[1673651622749,28.7456913,1450.7,1450.6,3.75871465]
[1673651623408,26.7456913,1450.7,1450.6,3.75871465]
[1673651624877,0.2142522,1450.7,1450.6,3.75871465]
[1673651625048,0.1482522,1450.7,1450.6,3.75871465]
[1673651626399,0.1482522,1450.7,1450.6,10.65240465]
[1673651626608,0.09792362,1450.7,1450.6,10.71840465]
[1673651626820,0.09792362,1450.7,1450.6,24.50578465]
[1673651627168,0.09792362,1450.7,1450.6,13.96114671]
[1673651627298,8.89194,1451.0,1450.6,4.60874206]
[1673651627299,9.09717526,1451.0,1450.6,4.60874206]
[1673651627515,2.0,1450.8,1450.6,1.3]
[1673651627763,15.7855,1450.8,1450.6,1.3]
[1673651628093,22.74426,1450.8,1450.7,2.45871465]
[1673651628451,26.17809009,1450.8,1450.7,2.45871465]
[1673651628711,17.28533009,1450.8,1450.7,2.45871465]
[1673651628928,26.5958371,1450.8,1450.7,2.45871465]
[1673651629449,19.84305871,1450.8,1450.7,2.45871465]
[1673651629780,17.4252917,1450.8,1450.7,2.45871465]
[1673651630140,24.3180317,1450.8,1450.7,2.45871465]
[1673651630578,17.4252917,1450.8,1450.6,1.29]
[1673651630801,10.32705009,1450.7,1450.6,1.29]
[1673651631047,17.28627009,1450.7,1450.6,1.29]
[1673651631344,33.70460926,1450.7,1450.4,1.0671554]
[1673651632061,3.43383009,1450.6,1450.4,1.0671554]
[1673651632250,6.89417,1450.5,1450.4,1.0671554]
[1673651632463,6.96017,1450.5,1450.4,1.0671554]
[1673651632885,0.066,1450.5,1450.4,1.0671554]
[1673651633103,0.2044888,1450.6,1450.4,1.0671554]
[1673651633437,0.1384888,1450.6,1450.4,1.0671554]
[1673651633654,20.8201588,1450.6,1450.4,1.0671554]
[1673651633822,23.4313646,1450.6,1450.4,1.0671554]
[1673651634479,26.86519469,1450.6,1450.4,1.0671554]
[1673651636126,3.43383009,1450.5,1450.4,1.0671554]
[1673651636381,24.11634009,1450.5,1450.4,1.0671554]
[1673651636597,24.18234009,1450.5,1450.4,1.0671554]
[1673651637298,24.32008233,1450.5,1450.4,1.0671554]
[1673651638813,10.53174233,1450.5,1450.4,1.0671554]
[1673651638968,0.20374224,1450.5,1450.4,1.0671554]
[1673651639177,5.13146713,1450.5,1450.4,1.0671554]
[1673651639436,2.0,1450.4,1450.3,0.2270914]
[1673651639651,26.11775009,1450.4,1450.3,0.1610914]
[1673651639859,28.0929138,1450.4,1450.3,0.1610914]
[1673651640380,28.23912122,1450.4,1450.3,0.1610914]
[1673651643590,21.34448122,1450.4,1450.3,0.1610914]
[1673651644038,12.44984122,1450.4,1450.3,0.1610914]
[1673651644268,0.21220742,1450.4,1450.3,0.1610914]
[1673651644461,0.14620742,1450.4,1450.3,0.1610914]
[1673651644650,7.04084742,1450.4,1450.3,0.1610914]
[1673651644908,0.21220742,1450.4,1450.3,0.1610914]
[1673651645091,0.14620742,1450.4,1450.3,0.1610914]
[1673651645588,0.14620742,1450.4,1450.3,1.57237068]
[1673651645804,3.58003751,1450.4,1450.3,0.1610914]
[1673651646013,0.14620742,1450.4,1450.3,0.1610914]
[1673651646218,8.32584742,1450.4,1450.3,0.1610914]
[1673651646429,8.39184742,1450.4,1450.3,0.1610914]
[1673651646856,0.21220742,1450.4,1450.3,0.1610914]
[1673651647073,0.14620742,1450.4,1450.3,0.1610914]
[1673651647484,0.14620742,1450.4,1450.3,0.39330968]
[1673651647948,0.14620742,1450.4,1450.3,15.21134559]
[1673651648158,0.10015114,1450.4,1450.3,10.38222559]
[1673651648326,0.10015114,1450.4,1450.3,1.48710559]
[1673651648327,0.13853137,1450.4,1450.3,1.48710559]
[1673651648724,0.13853137,1450.4,1450.3,1.42110559]
[1673651648904,0.13853137,1450.4,1450.3,0.39330968]
[1673651649061,0.13853137,1450.4,1450.3,1.42110559]
[1673651649267,9.13456,1450.7,1450.3,1.42110559]
[1673651649268,0.066,1450.7,1450.3,15.21134559]
[1673651649476,35.25993,1450.9,1450.4,1.52113456]
[1673651649733,0.066,1450.9,1450.4,9.44324047]
[1673651649922,213.88734965,1451.1,1450.5,2.0]
[1673651650139,213.88734965,1451.1,1450.6,13.78681]
[1673651650140,3.43383009,1451.0,1450.6,13.78681]
[1673651650470,0.1415174,1450.8,1450.6,16.22365059]
[1673651650683,0.1415174,1450.8,1450.6,17.2514465]
[1673651650892,0.1415174,1450.8,1450.7,3.0]
[1673651651105,0.1415174,1450.8,1450.7,20.22027009]
[1673651651318,182.31804497,1451.1,1450.7,21.312066]
[1673651651622,182.31804497,1451.1,1450.8,0.83180324]
[1673651651785,182.31804497,1451.1,1450.7,3.06989262]
[1673651651786,189.20953497,1451.1,1450.7,3.06989262]
[1673651651993,189.20953497,1451.1,1450.7,3.00389262]
[1673651652477,182.31804497,1451.1,1450.7,4.03168853]
[1673651653048,182.31804497,1451.1,1450.7,17.81763853]
[1673651653304,182.31804497,1451.1,1450.8,2.0]
[1673651653519,182.31804497,1451.1,1451.0,6.89179]
[1673651653679,182.31804497,1451.1,1451.0,6.95779]
[1673651654327,182.31804497,1451.1,1451.0,15.84958]
[1673651654522,182.31804497,1451.1,1451.0,22.28341009]
[1673651654765,182.31804497,1451.1,1451.0,23.74224018]
[1673651654975,182.31804497,1451.1,1451.0,25.09960035]
[1673651655378,168.65324497,1451.1,1451.0,26.12739626]
[1673651656289,168.65324497,1451.1,1451.0,24.12739626]
[1673651656430,168.65324497,1451.1,1451.0,22.66856617]
[1673651656988,168.65324497,1451.1,1451.0,26.12739626]
[1673651657145,156.13361497,1451.1,1451.0,26.12739626]
[1673651657361,133.68952497,1451.1,1451.0,26.12739626]
[1673651657628,129.27856497,1451.1,1451.0,34.12984594]
[1673651657786,125.63257107,1451.1,1451.0,33.53308421]
[1673651658645,125.63257107,1451.1,1451.0,32.56053666]
[1673651658988,125.63257107,1451.1,1451.0,19.66577026]
[1673651659197,125.63257107,1451.1,1451.0,23.12652608]
[1673651659406,125.63257107,1451.1,1451.0,26.56035617]
[1673651659990,125.63257107,1451.1,1451.0,27.58780862]
[1673651660198,125.63257107,1451.1,1451.0,31.62950248]
[1673651660450,125.63257107,1451.1,1451.0,33.08867602]
[1673651660451,105.20872107,1451.1,1451.0,33.08867602]
[1673651660674,105.20872107,1451.1,1451.0,34.03308421]
[1673651660827,105.20872107,1451.1,1451.0,34.54698216]
[1673651661037,105.20872107,1451.1,1451.0,36.08712209]
[1673651661299,83.93025806,1451.1,1451.0,36.66359647]
[1673651661455,80.65166924,1451.1,1451.0,34.60800466]
[1673651661667,57.81560926,1451.1,1451.0,34.60800466]
[1673651661876,36.36524588,1451.1,1451.0,35.12345654]
[1673651662129,30.36284956,1451.1,1451.0,35.12345654]
[1673651662774,30.36284956,1451.1,1451.0,36.66200568]
[1673651662931,28.46739853,1451.1,1451.0,36.66200568]
[1673651663143,25.73320786,1451.1,1451.0,34.60641387]
[1673651663607,10.02492316,1451.1,1451.0,34.60641387]
[1673651663785,0.05482814,1451.2,1451.1,2.5]
[1673651663992,0.05482814,1451.2,1451.1,26.11227297]
[1673651664225,0.05482814,1451.2,1451.1,34.07710153]
[1673651664608,0.05482814,1451.2,1451.1,27.18578153]
[1673651664820,0.05482814,1451.2,1451.1,12.37817924]
[1673651665080,0.05482814,1451.2,1451.1,11.94714506]
[1673651665244,0.05482814,1451.2,1451.1,0.066]
[1673651665450,0.05482814,1451.2,1450.9,7.0864006]
[1673651665691,0.05482814,1451.2,1451.0,3.43383009]
[1673651666128,0.05482814,1451.2,1451.0,5.93383009]
[1673651666296,0.05482814,1451.2,1451.0,12.89153009]
[1673651666502,0.05482814,1451.2,1451.1,4.28915301]
[1673651667667,0.05482814,1451.2,1451.1,14.6143031]
[1673651667904,0.05482814,1451.2,1451.1,21.5716231]
[1673651668129,0.05482814,1451.2,1451.1,21.5696231]
[1673651668292,0.05482814,1451.2,1451.1,21.5716231]
[1673651668503,0.15738832,1451.2,1451.1,21.5716231]
[1673651669237,0.15738832,1451.2,1451.1,14.6803031]
[1673651670448,0.15738832,1451.2,1451.1,4.35515301]
[1673651670640,0.15738832,1451.2,1451.0,13.78288]
[1673651670641,7.04822832,1451.2,1451.0,0.066]
[1673651670852,14.00506832,1451.2,1450.9,3.0]
[1673651671028,20.89590832,1451.2,1450.9,3.0]
[1673651671233,14.00506832,1451.2,1450.9,3.0]
[1673651671499,7.11422832,1451.2,1450.9,3.0]
[1673651671998,7.11422832,1451.2,1451.0,3.0]
[1673651672390,0.22338832,1451.2,1450.9,9.95799]
[1673651672639,0.15738832,1451.2,1451.0,14.779379]
[1673651672846,0.15738832,1451.2,1451.0,11.38741909]
[1673651673073,0.15738832,1451.2,1451.1,2.5]
[1673651673696,0.15738832,1451.2,1451.1,6.89132]
[1673651673860,0.15738832,1451.2,1451.1,9.47437291]
[1673651674071,0.15738832,1451.2,1451.1,5.58305291]
[1673651674815,0.11738832,1451.2,1451.1,5.58305291]
[1673651675243,0.11738832,1451.2,1451.1,3.066]
[1673651675437,0.11738832,1451.2,1451.1,3.0]
[1673651677348,1.54738832,1451.2,1451.1,3.0]
[1673651677568,15.32906832,1451.2,1450.9,3.066]
[1673651677758,15.32906832,1451.2,1450.9,4.3066]
[1673651677759,22.28590832,1451.2,1450.9,4.3066]
[1673651678313,1.61338832,1451.2,1450.9,4.3066]
[1673651678478,8.43832832,1451.2,1450.9,4.3066]
[1673651678688,15.39526832,1451.2,1450.9,4.3066]
[1673651678932,22.28620832,1451.2,1450.8,10.066]
[1673651679120,15.39526832,1451.2,1450.8,10.066]
[1673651679779,15.39526832,1451.2,1450.8,16.9587]
[1673651679999,8.50432832,1451.2,1450.8,16.9587]
[1673651680204,15.39526832,1451.2,1450.8,16.9587]
[1673651680422,15.39526832,1451.2,1450.8,21.10874]
[1673651680794,8.50432832,1451.2,1450.8,21.10874]
[1673651681004,1.61338832,1451.2,1450.8,28.00148]
[1673651681215,8.43829832,1451.2,1450.8,28.00148]
[1673651681455,8.50429832,1451.2,1450.8,28.00148]
[1673651681630,8.50429832,1451.2,1450.9,7.69822667]
[1673651681838,8.50429832,1451.2,1450.9,0.87195667]
[1673651682081,8.50429832,1451.2,1450.9,0.80595667]
[1673651683058,7.07429832,1451.2,1450.9,0.80595667]
[1673651683228,7.07429832,1451.2,1450.9,14.59047667]
[1673651683229,0.18338832,1451.2,1450.9,14.59047667]
[1673651683432,0.11738832,1451.2,1451.0,1.45904767]
[1673651683709,0.11738832,1451.2,1451.0,22.13401767]
[1673651684008,0.11738832,1451.2,1451.0,15.30822767]
[1673651684220,7.00840832,1451.2,1451.0,1.52504767]
[1673651684434,9.39132,1451.1,1450.9,0.80595667]
[1673651684587,0.066,1451.1,1450.9,0.80595667]
[1673651684792,13.96557832,1451.2,1450.9,0.80595667]
[1673651685244,7.07440832,1451.2,1450.9,0.80595667]
[1673651685455,7.07440832,1451.2,1450.9,7.69819667]
[1673651685456,0.10106819,1451.0,1450.9,7.69819667]
[1673651685654,0.10106819,1451.0,1450.9,7.76419667]
[1673651685860,0.10106819,1451.0,1450.9,0.87195667]
[1673651686100,0.10106819,1451.0,1450.9,0.80595667]
[1673651686478,16.34394814,1451.2,1450.9,0.80595667]
[1673651686705,9.45282814,1451.2,1450.8,23.97923805]
[1673651686944,9.45282814,1451.2,1450.8,30.87176805]
[1673651687151,9.45282814,1451.2,1450.8,31.89673034]
[1673651687152,2.56182814,1451.2,1450.8,31.89673034]
[1673651687328,0.01482814,1451.2,1450.8,31.89673034]
[1673651687546,0.1234232,1451.1,1450.8,25.00420034]
[1673651688107,0.1234232,1451.1,1450.8,33.43548948]
[1673651688321,0.1234232,1451.1,1450.8,26.54274948]
[1673651688958,0.1234232,1451.1,1450.8,25.00420034]
[1673651689469,6.89145,1451.1,1450.8,12.75771948]
[1673651689679,22.13220153,1451.1,1450.8,11.09096229]
[1673651690053,2.5,1451.0,1450.8,11.09096229]
[1673651690308,9.39191,1451.0,1450.8,12.39096229]
[1673651690483,16.34982,1451.0,1450.8,1.366]
[1673651690680,8.527252,1450.9,1450.8,1.3]
[1673651690888,8.593252,1450.9,1450.8,1.3]
[1673651691312,6.95827,1450.9,1450.8,1.3]
[1673651691782,6.95827,1450.9,1450.6,1.02496229]
[1673651692151,13.85054,1450.9,1450.6,1.02496229]
[1673651692366,20.74281,1450.9,1450.5,1.60454914]
[1673651692630,20.74281,1450.9,1450.4,14.96014095]
[1673651692797,2.074281,1450.8,1450.4,2.90454914]
[1673651693143,2.074281,1450.8,1450.4,1.3]
[1673651693144,2.5,1450.7,1450.4,1.3]
[1673651694193,29.24460575,1450.8,1450.4,1.3]
[1673651694563,22.35166575,1450.8,1450.4,2.29603605]
[1673651694778,20.27738475,1450.8,1450.4,10.72922519]
[1673651695038,20.27738475,1450.8,1450.4,9.25667605]
[1673651695264,20.27738475,1450.8,1450.4,16.15131605]
[1673651695580,13.78653,1450.7,1450.4,1.366]
[1673651695909,2.5,1450.6,1450.4,1.3]
[1673651696064,29.25668,1450.5,1450.4,1.3]
[1673651696268,29.32268,1450.5,1450.3,0.1610914]
[1673651696530,2.5,1450.4,1450.3,0.1610914]
[1673651696841,16.28928,1450.4,1450.3,0.1610914]
[1673651697086,19.644642,1450.4,1450.3,0.1610914]
[1673651697422,19.76284072,1450.4,1450.3,0.1610914]
[1673651698515,12.86820072,1450.4,1450.3,0.1610914]
[1673651698730,19.76284072,1450.4,1450.3,0.1610914]
[1673651699156,26.65748072,1450.4,1450.3,0.1610914]
[1673651699657,19.76284072,1450.4,1450.3,0.1610914]
[1673651700266,12.86820072,1450.4,1450.3,0.1610914]
[1673651700482,2.68419872,1450.4,1450.3,0.1610914]
[1673651700691,2.61819872,1450.4,1450.3,0.1610914]
[1673651701236,16.40747872,1450.4,1450.3,0.1610914]
[1673651701443,9.57883872,1450.4,1450.3,0.1610914]
[1673651701872,0.18419872,1450.4,1450.3,0.1610914]
[1673651702113,0.11819872,1450.4,1450.3,0.1610914]
[1673651702494,16.07982,1450.6,1450.3,0.1610914]
[1673651702708,16.07982,1450.6,1450.3,0.88284568]
[1673651703424,9.15504538,1450.6,1450.3,0.88284568]
[1673651703631,16.04879538,1450.6,1450.3,0.88284568]
[1673651704086,16.04879538,1450.6,1450.3,0.1610914]
[1673651704261,22.94254538,1450.6,1450.3,0.1610914]
[1673651704486,0.09912115,1450.5,1450.3,0.1610914]
[1673651704942,0.10112115,1450.5,1450.3,0.1610914]
[1673651705153,0.09912115,1450.5,1450.3,0.1610914]
[1673651705365,0.09912115,1450.5,1450.3,8.57672419]
[1673651705521,0.09912115,1450.5,1450.3,8.64272419]
[1673651705730,0.09912115,1450.5,1450.3,1.74767419]
[1673651705964,0.09912115,1450.5,1450.3,1.68167419]
[1673651706155,13.88772115,1450.5,1450.3,0.1610914]
[1673651706390,13.95372115,1450.5,1450.3,0.1610914]
[1673651707012,20.84802115,1450.5,1450.3,0.1610914]
[1673651707330,13.95372115,1450.5,1450.3,0.1610914]
[1673651707543,0.16512115,1450.5,1450.3,3.59492149]
[1673651707777,0.09912115,1450.5,1450.4,0.35949215]
[1673651708368,6.95978,1450.6,1450.4,0.35949215]
[1673651708742,0.066,1450.6,1450.5,1.43527745]
[1673651708896,0.09837449,1450.7,1450.5,0.00527745]
[1673651709110,0.09837449,1450.7,1450.5,24.8539705]
[1673651709321,0.08853705,1450.7,1450.6,3.43383009]
[1673651709566,0.08853705,1450.7,1450.6,21.24823518]
[1673651709896,0.08853705,1450.7,1450.6,23.94244323]
[1673651710108,0.05456739,1450.7,1450.6,14.54875323]
[1673651710257,0.05456739,1450.7,1450.6,9.07729955]
[1673651710472,28.02896298,1451.1,1450.6,9.07729955]
[1673651710756,34.92068298,1451.1,1450.7,6.43910681]
[1673651710937,28.02896298,1451.1,1450.7,6.50510681]
[1673651711207,21.13741298,1451.1,1450.7,13.39825681]
[1673651711413,21.13741298,1451.1,1450.8,1.2865021]
[1673651711981,0.15931298,1451.1,1450.8,8.1791921]
[1673651712203,0.09331298,1451.1,1450.8,8.2451921]
[1673651712517,13.85637112,1451.2,1450.8,8.2451921]
[1673651712754,6.96525112,1451.2,1450.9,0.82451921]
[1673651713093,6.96525112,1451.2,1450.9,14.60905921]
[1673651713094,0.07414112,1451.2,1450.9,14.60905921]
[1673651713307,0.00814112,1451.2,1451.1,6.89132]
[1673651713568,0.00814112,1451.2,1451.1,6.95732]
[1673651713726,0.00814112,1451.2,1451.1,13.84864]
[1673651714263,0.00814112,1451.2,1451.1,13.85391527]
[1673651714470,0.08963268,1451.2,1451.1,20.74523527]
[1673651714815,0.08963268,1451.2,1451.1,22.12930471]
[1673651715032,0.08963268,1451.2,1451.1,25.5611348]
[1673651715194,0.08963268,1451.2,1451.1,28.5631348]
[1673651715408,0.08963268,1451.2,1451.1,21.6718148]
[1673651716095,0.08963268,1451.2,1451.1,24.1718148]
[1673651716253,0.08963268,1451.2,1451.1,21.6718148]
[1673651716927,0.08963268,1451.2,1451.1,23.1718148]
[1673651717117,0.08963268,1451.2,1451.1,21.6718148]
[1673651718373,0.08963268,1451.2,1451.1,28.5631348]
[1673651718612,0.08963268,1451.2,1451.1,21.6718148]
[1673651718784,0.08963268,1451.2,1451.1,28.5631348]
[1673651718995,0.08963268,1451.2,1451.1,21.6718148]
[1673651719204,0.08963268,1451.2,1451.1,28.5631348]
[1673651719632,0.08963268,1451.2,1451.1,31.0631348]
[1673651719837,0.08963268,1451.2,1451.1,28.5631348]
[1673651720595,0.08963268,1451.2,1451.1,31.1913139]
[1673651720781,0.08963268,1451.2,1451.1,28.6913139]
[1673651721000,0.08963268,1451.2,1451.1,28.5631348]
[1673651721575,0.08963268,1451.2,1451.1,7.88837985]
[1673651722914,0.08963268,1451.2,1451.1,14.77969985]